bitfinex/quotes_SOLUSD_20220212
["timestamp","ask_amount","ask_price","bid_price","bid_amount"]
[1644688715681,12.13253189,97.859,97.744,5.112]
[1644688715883,2.62390296,97.859,97.743,5.112]
[1644688716079,12.12333278,97.858,97.78,7.0]
[1644688716280,0.502,97.869,97.79,14.81]
[1644688716504,0.1,97.888,97.781,68.30432125]
[1644688716704,0.1,97.888,97.782,24.7318]
[1644688717103,0.1,97.888,97.783,0.25]
[1644688717303,0.1,97.888,97.8,15.336]
[1644688717504,0.1,97.888,97.801,48.21903555]
[1644688718104,0.1,97.888,97.802,5.11]
[1644688718905,0.1,97.888,97.81,15.337]
[1644688719104,0.1,97.888,97.811,5.11]
[1644688720305,0.1,97.888,97.82,15.3352]
[1644688720504,0.1,97.888,97.821,47.67644386]
[1644688720703,0.1,97.888,97.822,5.109]
[1644688721805,0.1,97.888,97.83,15.3338]
[1644688722003,0.1,97.888,97.831,5.109]
[1644688722405,0.1,97.888,97.824,5.109]
[1644688722806,0.1,97.888,97.825,2.62390296]
[1644688723206,0.1,97.888,97.826,5.109]
[1644688723409,0.1,97.888,97.84,15.3313]
[1644688723612,0.1,97.888,97.841,41.68745781]
[1644688727116,0.1,97.888,97.841,36.57845781]
[1644688729019,0.1,97.888,97.842,5.109]
[1644688731424,0.1,97.888,97.841,36.57845781]
[1644688732623,0.1,97.888,97.842,5.109]
[1644688736022,22.15071201,97.918,97.842,45.0]
[1644688736223,21.65071201,97.918,97.842,45.0]
[1644688736423,21.15071201,97.918,97.842,45.0]
[1644688737926,15.3371,97.91,97.841,36.57845781]
[1644688739328,30.1471,97.91,97.841,36.57845781]
[1644688740329,2.88495873,97.909,97.841,36.57845781]
[1644688740530,15.3403,97.89,97.811,5.108]
[1644688741431,15.3403,97.89,97.812,46.95563385]
[1644688742332,30.1503,97.89,97.812,46.95563385]
[1644688742533,30.1503,97.89,97.792,5.109]
[1644688742734,15.3433,97.87,97.792,5.109]
[1644688742932,15.3433,97.87,97.781,5.11]
[1644688743132,24.5635,97.869,97.772,5.111]
[1644688743332,24.5635,97.869,97.771,24.7039]
[1644688743533,24.5635,97.869,97.772,37.83439627]
[1644688743930,15.3452,97.86,97.772,37.83439627]
[1644688744143,15.3452,97.86,97.761,5.111]
[1644688744336,15.3452,97.86,97.74,15.3467]
[1644688744337,14.81,97.85,97.757,5.111]
[1644688744631,14.81,97.85,97.74,15.3467]
[1644688744832,14.81,97.85,97.74,14.3467]
[1644688745131,14.81,97.85,97.742,39.42197659]
[1644688745734,15.3486,97.84,97.742,39.42197659]
[1644688746730,15.3486,97.84,97.743,5.112]
[1644688748133,15.3486,97.84,97.742,39.42197659]
[1644688749437,15.3486,97.84,97.743,5.112]
[1644688750638,14.3486,97.84,97.743,5.112]
[1644688752638,14.3486,97.84,97.742,39.42197659]
[1644688754038,14.3486,97.84,97.743,5.112]
[1644688754739,103.1,97.829,97.743,5.112]
[1644688754940,15.354,97.81,97.742,39.42197659]
[1644688759366,15.354,97.81,97.71,30.1616]
[1644688759568,24.647,97.809,97.711,5.114]
[1644688759769,15.3562,97.79,97.704,5.114]
[1644688760368,15.3562,97.79,97.705,43.10734713]
[1644688761469,15.3562,97.79,97.706,5.115]
[1644688761670,31.0822,97.79,97.706,5.115]
[1644688762274,2.62390296,97.789,97.706,5.115]
[1644688762470,2.62390296,97.789,97.671,52.2557]
[1644688762669,15.3618,97.76,97.672,0.25]
[1644688762871,15.3618,97.76,97.673,5.116]
[1644688763273,15.3618,97.76,97.674,35.9114082]
[1644688763470,15.3618,97.76,97.675,5.116]
[1644688765171,30.557,97.76,97.675,5.116]
[1644688765580,30.557,97.76,97.675,4.616]
[1644688770589,37.687,97.76,97.675,4.616]
[1644688770889,37.687,97.76,97.674,35.9114082]
[1644688770890,15.3628,97.75,97.674,35.9114082]
[1644688771489,14.8628,97.75,97.674,35.9114082]
[1644688772591,1.002,97.749,97.674,35.9114082]
[1644688774092,14.8628,97.75,97.675,5.117]
[1644688775893,103.1,97.749,97.675,5.117]
[1644688776095,15.3656,97.73,97.675,5.117]
[1644688776295,15.3656,97.73,97.653,5.117]
[1644688776712,1.002,97.729,97.653,5.117]
[1644688776912,1.002,97.729,97.654,41.5026806]
[1644688777116,1.002,97.747,97.655,5.118]
[1644688777611,24.716,97.746,97.655,5.118]
[1644688777810,15.3666,97.72,97.654,41.5026806]
[1644688781118,30.9044,97.72,97.654,41.5026806]
[1644688783221,1.002,97.719,97.654,41.5026806]
[1644688783522,15.3689,97.71,97.654,41.5026806]
[1644688783722,15.3689,97.71,97.626,0.024]
[1644688783922,23.4948,97.709,97.623,5.143]
[1644688784123,23.4948,97.709,97.622,5.143]
[1644688784324,23.4948,97.709,97.623,0.024]
[1644688784523,23.4948,97.709,97.624,5.119]
[1644688784723,23.4948,97.709,97.625,43.17998566]
[1644688784923,23.4948,97.709,97.625,43.20398566]
[1644688785124,23.4948,97.709,97.626,5.143]
[1644688785325,23.4948,97.709,97.626,5.393]
[1644688791029,23.4948,97.709,97.628,1.91069615]
[1644688791331,23.4948,97.709,97.629,0.024]
[1644688791629,23.4948,97.709,97.63,5.119]
[1644688791829,23.4948,97.709,97.631,0.024]
[1644688792028,23.4948,97.709,97.632,5.119]
[1644688792229,23.4948,97.709,97.633,24.7194]
[1644688792430,23.4948,97.709,97.633,24.7434]
[1644688792631,23.4948,97.709,97.634,5.143]
[1644688792830,23.4948,97.709,97.635,0.024]
[1644688793031,15.3696,97.7,97.636,5.119]
[1644688793431,15.3696,97.7,97.633,24.7194]
[1644688793630,23.4948,97.709,97.634,5.119]
[1644688793833,15.5378,97.72,97.634,5.143]
[1644688794030,15.3675,97.72,97.635,0.024]
[1644688794233,24.192,97.747,97.641,40.85014621]
[1644688794535,23.19,97.747,97.642,5.118]
[1644688794736,23.19,97.747,97.642,7.76590296]
[1644688794934,23.19,97.747,97.643,0.024]
[1644688795134,23.19,97.747,97.644,5.117]
[1644688795344,23.19,97.747,97.644,7.74090296]
[1644688795534,23.19,97.747,97.645,2.64790296]
[1644688795736,15.3645,97.74,97.65,15.3619]
[1644688795938,15.3645,97.74,97.651,0.024]
[1644688797735,30.5565,97.76,97.66,30.1706]
[1644688797936,30.5565,97.76,97.662,35.29530068]
[1644688798134,15.3613,97.76,97.663,5.117]
[1644688798535,15.6644,97.764,97.663,5.117]
[1644688799736,15.6644,97.764,97.67,15.3588]
[1644688799941,15.6644,97.764,97.671,5.116]
[1644688800939,15.3582,97.78,97.681,34.59605198]
[1644688801146,1.002,97.789,97.682,28.8853]
[1644688801340,1.002,97.809,97.69,14.81]
[1644688801539,1.002,97.812,97.692,103.1]
[1644688801736,1.002,97.812,97.691,5.115]
[1644688801737,1.002,97.834,97.694,103.1]
[1644688801937,1.002,97.839,97.694,103.1]
[1644688802136,1.44543541,97.831,97.713,1.42214811]
[1644688802337,1.44543541,97.838,97.721,40.59465774]
[1644688802538,1.44543541,97.838,97.741,44.11411304]
[1644688802737,1.44543541,97.837,97.741,52.98411304]
[1644688802938,15.3486,97.84,97.742,5.113]
[1644688803740,1.002,97.842,97.75,15.346]
[1644688803943,15.6999,97.842,97.751,51.7608]
[1644688804142,15.6999,97.842,97.752,103.1]
[1644688804342,15.6999,97.842,97.753,5.112]
[1644688804541,2.62390296,97.872,97.753,5.112]
[1644688804742,1.44543541,97.88,97.753,7.73590296]
[1644688804942,1.44543541,97.881,97.754,2.62390296]
[1644688805144,1.002,97.88,97.756,35.27345888]
[1644688805344,1.002,97.88,97.77,14.81]
[1644688805542,3.62590296,97.88,97.771,57.95200673]
[1644688805745,17.96640296,97.88,97.771,57.95200673]
[1644688805946,1.002,97.879,97.771,57.95200673]
[1644688806445,2.62390296,97.878,97.771,57.95200673]
[1644688806648,1.002,97.877,97.772,5.111]
[1644688807047,2.62390296,97.876,97.772,5.111]
[1644688807348,15.3429,97.87,97.772,5.111]
[1644688807747,1.002,97.869,97.772,5.111]
[1644688808754,15.3429,97.87,97.771,57.95200673]
[1644688808951,112.5,97.862,97.78,15.3417]
[1644688809152,112.5,97.862,97.781,103.1]
[1644688809454,2.62390296,97.893,97.791,36.08335033]
[1644688809650,2.62390296,97.893,97.8,14.81]
[1644688809856,2.62390296,97.861,97.792,46.9763]
[1644688810451,15.3434,97.87,97.792,46.9763]
[1644688810650,14.966,97.87,97.792,46.9763]
[1644688811257,2.62390296,97.869,97.792,46.9763]
[1644688813454,2.62390296,97.869,97.793,5.11]
[1644688813656,2.62390296,97.869,97.792,46.9763]
[1644688816152,2.62390296,97.869,97.793,5.11]
[1644688817555,15.3444,97.86,97.793,5.11]
[1644688817777,15.3444,97.86,97.762,52.8799]
[1644688817977,2.62390296,97.859,97.762,47.7699]
[1644688818176,2.62390296,97.859,97.763,5.111]
[1644688818478,2.62390296,97.878,97.763,7.73490296]
[1644688818681,2.62390296,97.878,97.77,15.343]
[1644688818877,2.62390296,97.878,97.781,39.86525572]
[1644688819081,2.62390296,97.878,97.782,22.6757]
[1644688819278,2.62390296,97.878,97.783,5.11]
[1644688821082,2.62390296,97.878,97.79,15.3401]
[1644688821980,23.5201,97.879,97.79,15.3401]
[1644688822178,23.5201,97.879,97.791,5.11]
[1644688823178,2.62390296,97.889,97.791,5.11]
[1644688823378,2.62390296,97.916,97.801,40.79064638]
[1644688823578,2.62390296,97.916,97.802,46.5947]
[1644688823780,1.44543541,97.923,97.803,5.109]
[1644688823980,1.44543541,97.918,97.803,5.109]
[1644688824178,23.4655,97.926,97.803,5.109]
[1644688824381,2.62390296,97.918,97.803,5.109]
[1644688824578,15.3373,97.91,97.81,15.3359]
[1644688824779,15.3373,97.91,97.81,30.1459]
[1644688824980,15.3373,97.91,97.811,5.109]
[1644688825382,17.96120296,97.91,97.811,5.109]
[1644688825782,17.96120296,97.91,97.81,14.81]
[1644688826885,17.96120296,97.91,97.821,38.58635607]
[1644688827085,17.96120296,97.91,97.791,5.109]
[1644688827288,112.5,97.899,97.791,5.109]
[1644688827485,15.3442,97.87,97.791,5.109]
[1644688828086,2.62390296,97.869,97.792,44.76416725]
[1644688828485,2.62390296,97.869,97.793,0.25]
[1644688828685,2.62390296,97.869,97.792,44.76416725]
[1644688828686,2.62390296,97.869,97.792,44.51416725]
[1644688829789,15.3445,97.86,97.792,44.51416725]
[1644688830890,2.62390296,97.859,97.792,44.51416725]
[1644688831090,15.3456,97.85,97.792,44.51416725]
[1644688831990,4.06933837,97.859,97.792,44.51416725]
[1644688832196,1.44543541,97.861,97.792,44.51416725]
[1644688832392,1.44543541,97.862,97.792,44.51416725]
[1644688832793,1.44543541,97.859,97.792,44.51416725]
[1644688833595,1.44543541,97.858,97.792,44.51416725]
[1644688833794,1.44543541,97.859,97.792,44.51416725]
[1644688833994,1.44543541,97.858,97.772,5.111]
[1644688834197,1.44543541,97.851,97.771,23.4588]
[1644688834394,1.44543541,97.85,97.771,23.4588]
[1644688834594,1.44543541,97.849,97.771,23.4588]
[1644688834994,1.44543541,97.849,97.772,46.50705755]
[1644688835194,4.06933837,97.85,97.772,46.50705755]
[1644688835795,19.41493837,97.85,97.772,46.50705755]
[1644688835997,1.44543541,97.849,97.772,46.50705755]
[1644688836195,17.96950296,97.85,97.772,46.50705755]
[1644688836196,19.41493837,97.85,97.772,46.50705755]
[1644688836695,19.41493837,97.85,97.771,23.4588]
[1644688836896,14.81,97.86,97.765,5.111]
[1644688836897,15.3496,97.83,97.765,5.111]
[1644688837097,23.8796,97.83,97.765,5.111]
[1644688837497,2.62390296,97.829,97.765,5.111]
[1644688837697,14.81,97.82,97.765,5.111]
[1644688838197,14.81,97.82,97.731,49.4707]
[1644688838198,2.62390296,97.819,97.731,49.4707]
[1644688838596,1.44543541,97.814,97.731,49.4707]
[1644688838798,14.81,97.81,97.731,49.4707]
[1644688839097,14.81,97.81,97.732,44.13856905]
[1644688839296,2.62390296,97.809,97.732,44.13856905]
[1644688839700,12.52390296,97.809,97.732,44.13856905]
[1644688839900,15.3538,97.8,97.732,44.13856905]
[1644688840899,15.3538,97.8,97.732,49.25256905]
[1644688841299,15.3538,97.8,97.733,0.25]
[1644688841499,14.81,97.81,97.733,0.25]
[1644688841697,14.81,97.82,97.733,0.25]
[1644688842102,14.81,97.82,97.732,49.25256905]
[1644688842301,2.62390296,97.819,97.732,49.25256905]
[1644688842700,15.3547,97.8,97.732,49.25256905]
[1644688843097,1.44543541,97.824,97.732,49.25256905]
[1644688843301,14.81,97.82,97.733,0.25]
[1644688843898,14.81,97.82,97.732,49.25256905]
[1644688844099,14.81,97.82,97.733,0.25]
[1644688844299,15.3511,97.82,97.734,5.113]
[1644688844498,52.61553541,97.84,97.734,5.113]
[1644688844702,51.1701,97.84,97.734,5.113]
[1644688845600,51.1701,97.84,97.733,0.25]
[1644688845799,15.3488,97.83,97.733,0.25]
[1644688846000,15.3488,97.83,97.734,5.113]
[1644688847100,15.3503,97.82,97.734,5.113]
[1644688848102,2.62390296,97.819,97.734,5.113]
[1644688848601,15.3517,97.81,97.734,5.113]
[1644688848803,15.3517,97.81,97.732,44.13856905]
[1644688849102,17.97560296,97.81,97.732,44.13856905]
[1644688849703,16.97560296,97.81,97.732,44.13856905]
[1644688849902,31.78560296,97.81,97.732,44.13856905]
[1644688853712,31.78560296,97.81,97.733,0.25]
[1644688853910,29.1617,97.81,97.734,5.113]
[1644688854109,31.78560296,97.81,97.732,44.13856905]
[1644688854710,29.1617,97.81,97.733,5.113]
[1644688855311,31.78560296,97.81,97.733,5.113]
[1644688856113,31.78560296,97.81,97.732,44.13856905]
[1644688856415,31.78560296,97.81,97.733,0.25]
[1644688857016,16.97560296,97.81,97.733,0.25]
[1644688857917,16.97560296,97.81,97.732,44.13856905]
[1644688860723,16.97560296,97.81,97.733,24.0815]
[1644688863625,16.97560296,97.81,97.734,37.74191326]
[1644688863825,14.3517,97.81,97.735,0.25]
[1644688864029,2.62390296,97.821,97.736,5.113]
[1644688864225,1.44543541,97.831,97.74,14.81]
[1644688864426,1.44543541,97.843,97.741,28.0009]
[1644688864626,1.44543541,97.849,97.743,1.42214811]
[1644688864828,1.44543541,97.851,97.761,39.68045124]
[1644688865026,1.44543541,97.853,97.762,24.3877]
[1644688865236,1.44543541,97.849,97.762,29.4987]
[1644688865430,1.44543541,97.849,97.763,2.62390296]
[1644688865631,1.44543541,97.852,97.764,5.112]
[1644688865835,1.44543541,97.868,97.764,5.112]
[1644688866035,1.44543541,97.869,97.765,2.62390296]
[1644688866458,1.44543541,97.874,97.765,4.04605107]
[1644688866656,1.44543541,97.875,97.77,15.343]
[1644688866855,1.44543541,97.879,97.78,14.81]
[1644688867055,1.44543541,97.877,97.781,37.62963859]
[1644688867257,1.44543541,97.873,97.782,24.2952]
[1644688867457,1.44543541,97.87,97.782,24.2952]
[1644688867656,1.44543541,97.866,97.782,24.2952]
[1644688867857,1.44543541,97.863,97.782,24.2952]
[1644688868063,1.44543541,97.861,97.782,24.2952]
[1644688868257,1.44543541,97.861,97.783,5.111]
[1644688868461,4.06933837,97.865,97.783,5.111]
[1644688868659,4.06933837,97.865,97.782,24.2952]
[1644688868660,2.62390296,97.865,97.782,24.2952]
[1644688869057,1.44543541,97.866,97.782,24.2952]
[1644688869258,1.44543541,97.867,97.783,5.361]
[1644688869458,1.44543541,97.866,97.783,5.111]
[1644688869659,1.44543541,97.853,97.751,5.111]
[1644688869858,1.44543541,97.848,97.742,30.0134]
[1644688870058,1.44543541,97.841,97.742,30.0134]
[1644688870261,1.44543541,97.832,97.742,30.0134]
[1644688870461,15.3489,97.83,97.743,35.46875773]
[1644688870965,15.3489,97.83,97.744,5.113]
[1644688871171,1.44543541,97.839,97.744,0.25]
[1644688871361,1.44543541,97.844,97.744,0.25]
[1644688871562,1.44543541,97.849,97.745,5.112]
[1644688871759,1.44543541,97.846,97.744,0.25]
[1644688872161,16.25543541,97.85,97.746,2.62390296]
[1644688872363,1.44543541,97.849,97.746,2.62390296]
[1644688872561,1.44543541,97.847,97.747,5.112]
[1644688872761,15.3477,97.84,97.743,40.58075773]
[1644688872963,22.9426,97.839,97.743,35.46875773]
[1644688873160,1.44543541,97.835,97.743,35.46875773]
[1644688873361,1.44543541,97.837,97.744,5.113]
[1644688873763,1.44543541,97.836,97.744,5.113]
[1644688873964,1.44543541,97.838,97.744,5.113]
[1644688874162,1.44543541,97.838,97.745,0.25]
[1644688874564,22.9426,97.839,97.746,5.112]
[1644688874764,15.3494,97.83,97.746,5.112]
[1644688875863,15.3494,97.83,97.747,0.25]
[1644688876067,15.3494,97.83,97.748,5.113]
[1644688876964,15.3522,97.81,97.748,5.113]
[1644688877364,2.62390296,97.809,97.748,5.113]
[1644688877565,2.62390296,97.809,97.72,0.024]
[1644688877970,2.62390296,97.809,97.72,38.54784388]
[1644688878366,24.7949,97.808,97.72,38.54784388]
[1644688878568,24.7949,97.808,97.721,5.114]
[1644688879169,24.7949,97.808,97.722,0.25]
[1644688879370,24.7949,97.808,97.723,5.114]
[1644688880368,24.7949,97.808,97.721,5.114]
[1644688883774,24.7949,97.808,97.722,0.25]
[1644688883975,24.7949,97.808,97.723,5.114]
[1644688884174,24.7949,97.808,97.722,4.864]
[1644688884375,24.7949,97.808,97.722,0.25]
[1644688884791,24.7949,97.808,97.723,5.114]
[1644688886676,15.1158,97.815,97.723,5.114]
[1644688888581,15.1158,97.815,97.722,0.25]
[1644688889483,22.5944,97.814,97.722,0.25]
[1644688889685,25.21830296,97.814,97.722,0.25]
[1644688890084,2.62390296,97.813,97.722,0.25]
[1644688890286,2.62390296,97.813,97.723,5.114]
[1644688890485,22.5944,97.814,97.73,15.3495]
[1644688890683,2.62390296,97.827,97.73,15.3495]
[1644688890684,23.622,97.829,97.731,5.113]
[1644688890888,23.622,97.829,97.731,28.7291]
[1644688891505,23.2574,97.839,97.731,31.35300296]
[1644688891886,15.349,97.83,97.731,28.7291]
[1644688892887,2.62390296,97.829,97.731,28.7291]
[1644688893090,15.3515,97.82,97.731,23.6161]
[1644688893289,23.775,97.819,97.732,5.363]
[1644688893691,23.775,97.819,97.732,5.113]
[1644688894690,23.775,97.819,97.733,0.25]
[1644688894889,15.3524,97.81,97.731,23.6161]
[1644688896093,15.3524,97.81,97.732,0.25]
[1644688896295,15.3524,97.81,97.732,5.364]
[1644688896493,1.44543541,97.818,97.732,5.364]
[1644688896895,25.22043541,97.819,97.732,5.364]
[1644688897296,23.775,97.819,97.732,5.364]
[1644688898295,1.44543541,97.815,97.732,5.364]
[1644688898899,1.44543541,97.814,97.732,5.364]
[1644688899598,15.3522,97.81,97.732,5.364]
[1644688899797,15.3522,97.81,97.732,0.25]
[1644688901116,15.3522,97.81,97.733,5.113]
[1644688902618,15.3546,97.8,97.733,5.113]
[1644688902818,24.4046,97.8,97.731,23.6161]
[1644688903019,27.02850296,97.8,97.708,0.024]
[1644688903220,24.4718,97.799,97.709,29.0812]
[1644688903418,1.44543541,97.798,97.709,23.9432]
[1644688903619,1.44543541,97.796,97.71,0.024]
[1644688903820,1.44543541,97.796,97.71,37.55869593]
[1644688904023,15.3572,97.78,97.711,0.024]
[1644688904219,15.3572,97.78,97.709,23.9432]
[1644688904420,15.3572,97.78,97.706,0.024]
[1644688904622,1.44543541,97.772,97.689,0.024]
[1644688904821,1.44543541,97.77,97.687,0.024]
[1644688905021,2.62390296,97.771,97.678,5.14]
[1644688905222,2.62390296,97.769,97.683,0.024]
[1644688905423,2.62390296,97.769,97.68,5.116]
[1644688905623,2.62390296,97.769,97.68,5.14]
[1644688905825,15.3607,97.76,97.68,5.14]
[1644688906824,15.3607,97.76,97.681,0.25]
[1644688907024,15.3607,97.76,97.682,0.024]
[1644688907224,2.62390296,97.759,97.682,0.024]
[1644688907425,10.53390296,97.759,97.681,0.274]
[1644688907622,15.3631,97.74,97.681,0.274]
[1644688907826,15.3631,97.74,97.681,0.25]
[1644688909425,15.3661,97.72,97.657,5.141]
[1644688909625,15.3661,97.72,97.664,0.024]
[1644688909826,15.3661,97.72,97.631,24.4313]
[1644688910025,15.3661,97.72,97.632,5.142]
[1644688910426,15.3661,97.72,97.655,48.31578891]
[1644688910626,15.3689,97.71,97.656,5.118]
[1644688910826,15.3689,97.71,97.656,0.024]
[1644688911027,15.3689,97.71,97.655,48.31578891]
[1644688911227,15.3689,97.71,97.634,0.024]
[1644688911426,25.8689,97.71,97.634,0.25]
[1644688911629,25.8689,97.71,97.635,5.119]
[1644688911829,40.9713,97.71,97.635,5.119]
[1644688912229,40.9713,97.71,97.636,37.38414767]
[1644688912529,30.4713,97.71,97.636,37.38414767]
[1644688912733,15.3689,97.71,97.636,37.38414767]
[1644688912932,2.62390296,97.733,97.637,2.62390296]
[1644688913128,23.7522,97.739,97.637,2.64790296]
[1644688913328,23.7522,97.739,97.638,0.024]
[1644688913530,23.7522,97.739,97.638,2.64790296]
[1644688913729,23.7522,97.739,97.639,0.024]
[1644688913930,23.7522,97.739,97.64,15.3635]
[1644688914130,15.3648,97.73,97.64,15.3635]
[1644688914330,15.3648,97.73,97.641,0.024]
[1644688914529,23.7522,97.739,97.641,0.024]
[1644688914931,15.4129,97.743,97.642,7.74190296]
[1644688915134,24.4495,97.758,97.643,47.515]
[1644688915332,38.5715,97.748,97.644,5.141]
[1644688915532,38.5715,97.748,97.644,0.024]
[1644688915733,24.4495,97.758,97.65,15.3621]
[1644688915933,2.62390296,97.77,97.66,14.81]
[1644688916132,15.2142,97.783,97.661,0.024]
[1644688916333,15.2142,97.783,97.662,103.1]
[1644688916536,1.44543541,97.81,97.663,5.14]
[1644688916736,1.44543541,97.814,97.69,15.355]
[1644688916938,15.3516,97.82,97.7,14.81]
[1644688917134,15.3516,97.82,97.701,0.024]
[1644688917534,15.3516,97.82,97.701,2.64790296]
[1644688917737,15.3516,97.82,97.702,2.64790296]
[1644688917938,15.3516,97.82,97.703,0.024]
[1644688918136,15.3516,97.82,97.703,24.9228]
[1644688918337,15.3516,97.82,97.704,2.64790296]
[1644688918537,1.44543541,97.831,97.72,15.3498]
[1644688918739,1.44543541,97.833,97.73,14.81]
[1644688919039,15.3485,97.84,97.731,49.1189]
[1644688919040,1.44543541,97.837,97.731,49.1189]
[1644688919237,1.44543541,97.837,97.731,54.2319]
[1644688919441,1.44543541,97.838,97.731,54.2319]
[1644688919639,1.44543541,97.839,97.731,54.2319]
[1644688920144,15.3491,97.83,97.74,15.348]
[1644688920345,15.3491,97.83,97.741,34.68080413]
[1644688920540,15.3491,97.83,97.742,5.113]
[1644688922442,1.44543541,97.838,97.742,5.113]
[1644688922643,1.44543541,97.843,97.742,5.113]
[1644688922843,1.44543541,97.845,97.742,5.113]
[1644688923045,1.44543541,97.843,97.742,5.113]
[1644688923645,15.3476,97.84,97.742,5.113]
[1644688924143,15.3476,97.84,97.741,34.68080413]
[1644688925546,15.3476,97.84,97.742,5.112]
[1644688927952,15.3476,97.84,97.743,2.62390296]
[1644688928150,15.3476,97.84,97.742,5.112]
[1644688930853,15.3476,97.84,97.75,15.3463]
[1644688931054,1.44543541,97.847,97.751,5.112]
[1644688931255,1.44543541,97.853,97.761,48.57974236]
[1644688931455,47.5579,97.858,97.761,48.57974236]
[1644688931655,47.5579,97.858,97.762,5.111]
[1644688932055,47.5579,97.858,97.77,15.3429]
[1644688933556,47.5579,97.858,97.771,5.111]
[1644688934158,1.44543541,97.876,97.78,15.3416]
[1644688934359,1.44543541,97.88,97.781,37.5294483]
[1644688934562,1.44543541,97.892,97.781,69.25245126]
[1644688934759,1.44543541,97.899,97.781,69.25245126]
[1644688935159,1.44543541,97.9,97.781,69.25245126]
[1644688935359,15.3385,97.9,97.811,34.44893782]
[1644688935560,2.62390296,97.898,97.811,34.44893782]
[1644688935759,2.62390296,97.898,97.812,5.109]
[1644688936961,15.3385,97.9,97.812,5.109]
[1644688937361,2.62390296,97.899,97.812,5.109]
[1644688939063,15.3385,97.9,97.812,5.109]
[1644688939266,113.94543541,97.908,97.812,5.109]
[1644688939463,112.5,97.908,97.812,5.109]
[1644688939664,112.5,97.908,97.811,34.44893782]
[1644688939864,112.5,97.908,97.812,47.257]
[1644688940668,15.3387,97.9,97.812,47.257]
[1644688941270,15.3387,97.9,97.813,5.109]
[1644688941887,15.3387,97.9,97.812,52.366]
[1644688942088,1.44543541,97.894,97.812,47.257]
[1644688942290,1.44543541,97.897,97.813,5.109]
[1644688942488,1.44543541,97.897,97.812,47.257]
[1644688943292,1.44543541,97.897,97.813,0.25]
[1644688943490,2.62390296,97.899,97.813,0.25]
[1644688943891,1.44543541,97.898,97.813,0.25]
[1644688944090,1.44543541,97.89,97.814,5.109]
[1644688944290,1.44543541,97.89,97.813,5.359]
[1644688944490,1.44543541,97.891,97.813,5.359]
[1644688944689,16.78553541,97.89,97.813,5.359]
[1644688944892,1.44543541,97.889,97.813,5.359]
[1644688945089,1.44543541,97.889,97.813,0.25]
[1644688945492,16.78553541,97.89,97.813,0.25]
[1644688945690,16.78553541,97.89,97.814,5.109]
[1644688945892,16.78553541,97.89,97.813,0.25]
[1644688946489,1.44543541,97.885,97.813,0.25]
[1644688946691,1.44543541,97.886,97.813,0.25]
[1644688947494,1.44543541,97.885,97.813,0.25]
[1644688947895,1.44543541,97.884,97.813,0.25]
[1644688948096,1.44543541,97.883,97.812,47.257]
[1644688948494,1.44543541,97.876,97.812,47.257]
[1644688948694,1.44543541,97.875,97.812,47.257]
[1644688948898,1.44543541,97.874,97.811,34.44893782]
[1644688949094,2.62390296,97.875,97.811,34.44893782]
[1644688949095,1.44543541,97.858,97.811,34.44893782]
[1644688949294,2.62390296,97.875,97.811,34.44893782]
[1644688949295,1.44543541,97.854,97.811,34.44893782]
[1644688949696,1.44543541,97.852,97.811,34.44893782]
[1644688949896,15.3464,97.85,97.811,34.44893782]
[1644688950496,1.44543541,97.851,97.811,34.44893782]
[1644688950695,1.44543541,97.865,97.811,34.44893782]